[Event "Live Chess"]
[Site "Chess.com"]
[Date "2024.06.01"]
[Round "-"]
[White "peteopeteo"]
[Black "Pandreq"]
[Result "1-0"]
[WhiteElo "1599"]
[BlackElo "1129"]
[TimeControl "300"]
[EndTime "12:14:40 PDT"]
[Termination "peteopeteo won on time"]

1. e4 {[%clk 0:04:58.9]} 1... Nf6 {[%clk 0:04:58.9]} 2. Nc3 {[%clk 0:04:58]}
2... Nc6 {[%clk 0:04:57.8]} 3. Nf3 {[%clk 0:04:57.3]} 3... d6 {[%clk 0:04:56.8]}
4. Bc4 {[%clk 0:04:56.5]} 4... h6 {[%clk 0:04:54.2]} 5. O-O {[%clk 0:04:55]}
5... e5 {[%clk 0:04:53.1]} 6. h3 {[%clk 0:04:53.8]} 6... Bd7 {[%clk 0:04:49.2]}
7. d3 {[%clk 0:04:52.9]} 7... Qc8 {[%clk 0:04:47.7]} 8. Ne2 {[%clk 0:04:48.7]}
8... Bxh3 {[%clk 0:04:36.9]} 9. Ng3 {[%clk 0:04:45.8]} 9... Be6 {[%clk
0:04:29.9]} 10. Bb3 {[%clk 0:04:44.1]} 10... Bxb3 {[%clk 0:04:21.4]} 11. axb3
{[%clk 0:04:44]} 11... Be7 {[%clk 0:04:16.5]} 12. Bd2 {[%clk 0:04:43]} 12... O-O
{[%clk 0:04:15]} 13. Nf5 {[%clk 0:04:39.6]} 13... Kh7 {[%clk 0:04:01.2]} 14. b4
{[%clk 0:04:38.5]} 14... Ng4 {[%clk 0:03:45.1]} 15. b5 {[%clk 0:04:34.2]} 15...
Nd8 {[%clk 0:03:43.3]} 16. Nxe7 {[%clk 0:04:33]} 16... Qd7 {[%clk 0:03:30.8]}
17. Nd5 {[%clk 0:04:23.8]} 17... Rc8 {[%clk 0:03:16.3]} 18. c4 {[%clk
0:04:00.8]} 18... c6 {[%clk 0:03:00.1]} 19. bxc6 {[%clk 0:03:58]} 19... bxc6
{[%clk 0:02:59]} 20. Ne3 {[%clk 0:03:56.9]} 20... Nxe3 {[%clk 0:02:55.8]} 21.
Bxe3 {[%clk 0:03:56.8]} 21... c5 {[%clk 0:02:55]} 22. Qa4 {[%clk 0:03:53.2]}
22... Qxa4 {[%clk 0:02:52.8]} 23. Rxa4 {[%clk 0:03:53.1]} 23... Rc7 {[%clk
0:02:49.5]} 24. Rfa1 {[%clk 0:03:51.9]} 24... Nc6 {[%clk 0:02:43.9]} 25. Ne1
{[%clk 0:03:40.8]} 25... Ra8 {[%clk 0:02:40.7]} 26. Ra6 {[%clk 0:03:34.4]} 26...
Nb4 {[%clk 0:02:31.1]} 27. Rxd6 {[%clk 0:03:30.7]} 27... a5 {[%clk 0:02:19.8]}
28. f4 {[%clk 0:03:16.8]} 28... f6 {[%clk 0:02:12.1]} 29. fxe5 {[%clk
0:03:16.7]} 29... fxe5 {[%clk 0:02:11.2]} 30. Nf3 {[%clk 0:02:29.3]} 30... Nc2
{[%clk 0:01:59.1]} 31. Re1 {[%clk 0:02:28.2]} 31... Nxe1 {[%clk 0:01:57.1]} 32.
Nxe1 {[%clk 0:02:28.1]} 32... Rb8 {[%clk 0:01:42.1]} 33. Ra6 {[%clk 0:02:19.3]}
33... Rxb2 {[%clk 0:01:28.5]} 34. Rxa5 {[%clk 0:02:17.4]} 34... Re2 {[%clk
0:01:16.4]} 35. Bf2 {[%clk 0:02:04.5]} 35... Rf7 {[%clk 0:01:01.6]} 36. Nf3
{[%clk 0:01:58.6]} 36... Kg6 {[%clk 0:00:47.9]} 37. Rxc5 {[%clk 0:01:56.9]}
37... Kh5 {[%clk 0:00:35.8]} 38. Rxe5+ {[%clk 0:01:55.6]} 38... Kg4 {[%clk
0:00:34.9]} 39. Be3 {[%clk 0:01:31.4]} 39... g5 {[%clk 0:00:25.5]} 40. Bf2
{[%clk 0:01:22.8]} 40... Ra7 {[%clk 0:00:18.2]} 41. Kf1 {[%clk 0:01:04.2]} 41...
Raa2 {[%clk 0:00:15.3]} 42. Be1 {[%clk 0:00:55]} 42... Rxg2 {[%clk 0:00:11.7]}
43. Rb5 {[%clk 0:00:46.5]} 43... Kxf3 {[%clk 0:00:09.7]} 44. Rf5+ {[%clk
0:00:44.9]} 44... Kg4 {[%clk 0:00:07.2]} 45. Rf6 {[%clk 0:00:38.4]} 45... Rh2
{[%clk 0:00:05.2]} 46. Kg1 {[%clk 0:00:36.1]} 46... Rhe2 {[%clk 0:00:01.8]} 47.
Kf1 {[%clk 0:00:30.7]} 1-0

[Event "Live Chess"]
[Site "Chess.com"]
[Date "2024.06.01"]
[Round "-"]
[White "Richardallis"]
[Black "ACM42"]
[Result "0-1"]
[WhiteElo "2033"]
[BlackElo "2220"]
[TimeControl "300"]
[EndTime "12:14:59 PDT"]
[Termination "ACM42 won on time"]

1. d4 {[%clk 0:04:55.1]} 1... Nf6 {[%clk 0:04:54.6]} 2. Nf3 {[%clk 0:04:53.1]}
2... g6 {[%clk 0:04:52.7]} 3. Bg5 {[%clk 0:04:45]} 3... Bg7 {[%clk 0:04:44]} 4.
Nbd2 {[%clk 0:04:44]} 4... O-O {[%clk 0:04:36.8]} 5. c3 {[%clk 0:04:42.2]} 5...
d6 {[%clk 0:04:35.4]} 6. e4 {[%clk 0:04:40.8]} 6... Nbd7 {[%clk 0:04:31.3]} 7.
Bc4 {[%clk 0:04:39.2]} 7... h6 {[%clk 0:04:29.4]} 8. Bxf6 {[%clk 0:04:37.8]}
8... Nxf6 {[%clk 0:04:26.6]} 9. e5 {[%clk 0:04:33.2]} 9... Nh5 {[%clk
0:04:20.8]} 10. O-O {[%clk 0:04:26.8]} 10... c5 {[%clk 0:04:19.1]} 11. dxc5
{[%clk 0:04:21.1]} 11... dxe5 {[%clk 0:04:14.1]} 12. Qe2 {[%clk 0:04:12]} 12...
Qc7 {[%clk 0:04:12.1]} 13. Qe3 {[%clk 0:04:09.5]} 13... Kh7 {[%clk 0:03:44.8]}
14. Rfe1 {[%clk 0:04:06.9]} 14... f6 {[%clk 0:03:42.3]} 15. b4 {[%clk
0:04:00.8]} 15... a6 {[%clk 0:03:35.6]} 16. Bd3 {[%clk 0:03:59.1]} 16... Nf4
{[%clk 0:03:27.6]} 17. Bc2 {[%clk 0:03:55.2]} 17... Be6 {[%clk 0:03:11.6]} 18.
g3 {[%clk 0:03:51.9]} 18... Nh3+ {[%clk 0:03:09.8]} 19. Kg2 {[%clk 0:03:39.2]}
19... Rad8 {[%clk 0:03:07.3]} 20. Ne4 {[%clk 0:03:34.9]} 20... f5 {[%clk
0:03:04.6]} 21. Ned2 {[%clk 0:03:26.5]} 21... f4 {[%clk 0:03:01.2]} 22. Qe2
{[%clk 0:03:18.6]} 22... Bg4 {[%clk 0:02:49.7]} 23. Qc4 {[%clk 0:03:10.4]} 23...
Ng5 {[%clk 0:02:41.3]} 24. Bxg6+ {[%clk 0:02:58.6]} 24... Kxg6 {[%clk
0:02:34.1]} 25. Nxe5+ {[%clk 0:02:57.6]} 25... Bxe5 {[%clk 0:02:29.2]} 26. gxf4
{[%clk 0:02:44.2]} 26... Rxf4 {[%clk 0:02:25]} 27. Ne4 {[%clk 0:02:26.5]} 27...
Bf3+ {[%clk 0:02:19.6]} 28. Kf1 {[%clk 0:02:23.5]} 28... Bxe4 {[%clk 0:02:15.9]}
29. Re3 {[%clk 0:02:14.8]} 29... Bg2+ {[%clk 0:02:13.6]} 30. Kxg2 {[%clk
0:02:12.3]} 30... Rxc4 {[%clk 0:02:12.6]} 31. Rg3 {[%clk 0:02:10.8]} 31... Bxg3
{[%clk 0:02:11]} 32. hxg3 {[%clk 0:02:03.4]} 32... Qc6+ {[%clk 0:02:10.5]} 0-1

[Event "Live Chess"]
[Site "Chess.com"]
[Date "2024.06.01"]
[Round "-"]
[White "Ninifu"]
[Black "Eva3337"]
[Result "1-0"]
[WhiteElo "2019"]
[BlackElo "1159"]
[TimeControl "300"]
[EndTime "12:15:02 PDT"]
[Termination "Ninifu won by resignation"]

1. d4 {[%clk 0:04:59]} 1... d5 {[%clk 0:04:55]} 2. e4 {[%clk 0:04:56]} 2... c6
{[%clk 0:04:49.1]} 3. c4 {[%clk 0:04:54.1]} 3... e6 {[%clk 0:04:47.6]} 4. Nc3
{[%clk 0:04:52.9]} 4... Bb4 {[%clk 0:04:41.5]} 5. e5 {[%clk 0:04:52.1]} 5... f6
{[%clk 0:04:39.2]} 6. Nf3 {[%clk 0:04:50.4]} 6... Nd7 {[%clk 0:04:34.3]} 7. Bd3
{[%clk 0:04:48.5]} 7... fxe5 {[%clk 0:04:26.5]} 8. dxe5 {[%clk 0:04:46.4]} 8...
Nc5 {[%clk 0:04:16.6]} 9. Bc2 {[%clk 0:04:36.8]} 9... Ne7 {[%clk 0:04:05.7]} 10.
O-O {[%clk 0:04:33.1]} 10... Qc7 {[%clk 0:03:48.9]} 11. Re1 {[%clk 0:04:20.2]}
11... Bd7 {[%clk 0:03:43.4]} 12. Ng5 {[%clk 0:04:18.8]} 12... O-O-O {[%clk
0:03:36.1]} 13. Nf7 {[%clk 0:04:17]} 13... Bxc3 {[%clk 0:03:29.3]} 14. bxc3
{[%clk 0:04:12.4]} 14... Ng6 {[%clk 0:03:03.7]} 15. Ba3 {[%clk 0:03:39.3]} 15...
b6 {[%clk 0:02:44]} 16. Bxc5 {[%clk 0:03:35]} 16... bxc5 {[%clk 0:02:42.2]} 17.
Rb1 {[%clk 0:03:34.4]} 17... Rhf8 {[%clk 0:02:25.7]} 18. Nd6+ {[%clk 0:03:32.6]}
1-0

[Event "Live Chess"]
[Site "Chess.com"]
[Date "2024.06.01"]
[Round "-"]
[White "f4nomore"]
[Black "bonantagulo"]
[Result "0-1"]
[WhiteElo "1202"]
[BlackElo "2047"]
[TimeControl "300"]
[EndTime "12:15:05 PDT"]
[Termination "bonantagulo won by resignation"]

1. d4 {[%clk 0:04:55]} 1... Nf6 {[%clk 0:04:58.2]} 2. Bg5 {[%clk 0:04:52.4]}
2... Ne4 {[%clk 0:04:48.7]} 3. Bf4 {[%clk 0:04:50.8]} 3... c5 {[%clk 0:04:47.4]}
4. d5 {[%clk 0:04:48.4]} 4... Qb6 {[%clk 0:04:44.7]} 5. c3 {[%clk 0:04:41.3]}
5... Qxb2 {[%clk 0:04:38.2]} 6. Nd2 {[%clk 0:04:31]} 6... Nxc3 {[%clk 0:04:03]}
7. Qc1 {[%clk 0:04:21.7]} 7... Qxc1+ {[%clk 0:04:02]} 8. Rxc1 {[%clk 0:04:19.1]}
8... Nxd5 {[%clk 0:04:01.9]} 9. Bg3 {[%clk 0:04:16.1]} 9... d6 {[%clk
0:03:55.6]} 10. e4 {[%clk 0:04:14.5]} 10... Nf6 {[%clk 0:03:52.1]} 11. Bb5+
{[%clk 0:04:11]} 11... Bd7 {[%clk 0:03:50.9]} 12. Bc4 {[%clk 0:04:09.2]} 12...
Nc6 {[%clk 0:03:48.6]} 13. f3 {[%clk 0:04:07.3]} 13... g6 {[%clk 0:03:46.1]} 14.
Ne2 {[%clk 0:04:05.8]} 14... Bh6 {[%clk 0:03:42.9]} 15. f4 {[%clk 0:04:00.3]}
15... O-O {[%clk 0:03:38.5]} 16. O-O {[%clk 0:03:57.1]} 16... a6 {[%clk
0:03:35.6]} 17. Nc3 {[%clk 0:03:47]} 17... b5 {[%clk 0:03:31.5]} 18. Bd3 {[%clk
0:03:42.7]} 18... Nb4 {[%clk 0:03:29.9]} 19. Bb1 {[%clk 0:03:38.8]} 19... Bc6
{[%clk 0:03:28.1]} 20. a3 {[%clk 0:03:35.9]} 20... a5 {[%clk 0:03:23.3]} 21.
axb4 {[%clk 0:03:33.9]} 21... axb4 {[%clk 0:03:23.2]} 22. Nd5 {[%clk 0:03:30.9]}
22... Nxd5 {[%clk 0:03:19.6]} 23. exd5 {[%clk 0:03:29.4]} 23... Bxd5 {[%clk
0:03:19.5]} 24. Be4 {[%clk 0:03:13.7]} 24... e6 {[%clk 0:03:08.5]} 25. Bxd5
{[%clk 0:03:11.5]} 25... exd5 {[%clk 0:03:08.4]} 26. Nf3 {[%clk 0:03:09.9]}
26... b3 {[%clk 0:03:02.7]} 27. Rb1 {[%clk 0:03:07]} 27... c4 {[%clk 0:02:57.6]}
28. Nd4 {[%clk 0:03:05.6]} 28... b4 {[%clk 0:02:54.9]} 29. Nb5 {[%clk
0:03:01.8]} 29... Rfd8 {[%clk 0:02:49.6]} 30. Nc7 {[%clk 0:02:58.9]} 30... Ra5
{[%clk 0:02:48.4]} 31. Rfd1 {[%clk 0:02:49.6]} 31... c3 {[%clk 0:02:46.4]} 32.
Rxb3 {[%clk 0:02:44]} 32... Rc8 {[%clk 0:02:33.8]} 33. Nxd5 {[%clk 0:02:35.7]}
33... Rxd5 {[%clk 0:02:32.4]} 34. Rc1 {[%clk 0:02:20.4]} 34... c2 {[%clk
0:02:29.9]} 35. Rxb4 {[%clk 0:02:02.6]} 35... Rd1+ {[%clk 0:02:27.5]} 0-1

[Event "Live Chess"]
[Site "Chess.com"]
[Date "2024.06.01"]
[Round "-"]
[White "nffc11"]
[Black "uselessduffer"]
[Result "1/2-1/2"]
[WhiteElo "2000"]
[BlackElo "2414"]
[TimeControl "300"]
[EndTime "12:15:10 PDT"]
[Termination "Game drawn - insufficient material"]

1. d4 {[%clk 0:04:53.7]} 1... Nf6 {[%clk 0:04:58.5]} 2. Nf3 {[%clk 0:04:50.8]}
2... e6 {[%clk 0:04:57]} 3. c4 {[%clk 0:04:45.2]} 3... Nc6 {[%clk 0:04:52.5]} 4.
g3 {[%clk 0:04:36.9]} 4... d5 {[%clk 0:04:50.1]} 5. Bg2 {[%clk 0:04:32.1]} 5...
dxc4 {[%clk 0:04:48.4]} 6. O-O {[%clk 0:04:27.3]} 6... Rb8 {[%clk 0:04:46.9]} 7.
Bg5 {[%clk 0:03:54.4]} 7... h6 {[%clk 0:04:34.6]} 8. Bxf6 {[%clk 0:03:52.9]}
8... Qxf6 {[%clk 0:04:34.5]} 9. e4 {[%clk 0:03:47.2]} 9... Qd8 {[%clk
0:04:03.2]} 10. d5 {[%clk 0:03:28.9]} 10... Nb4 {[%clk 0:03:56.7]} 11. Na3
{[%clk 0:03:08.6]} 11... b5 {[%clk 0:03:39.8]} 12. b3 {[%clk 0:02:22.6]} 12...
Nxd5 {[%clk 0:02:46.1]} 13. exd5 {[%clk 0:01:59.7]} 13... Bxa3 {[%clk
0:02:43.7]} 14. bxc4 {[%clk 0:01:57.7]} 14... O-O {[%clk 0:02:37.1]} 15. cxb5
{[%clk 0:01:46.2]} 15... Qxd5 {[%clk 0:02:02.4]} 16. Qxd5 {[%clk 0:01:28.8]}
16... exd5 {[%clk 0:02:02.3]} 17. Rab1 {[%clk 0:01:17.8]} 17... Bc5 {[%clk
0:01:33.8]} 18. Rfd1 {[%clk 0:01:11.8]} 18... Be6 {[%clk 0:01:15.7]} 19. Ne5
{[%clk 0:01:04.7]} 19... Rbd8 {[%clk 0:01:12.5]} 20. Nc6 {[%clk 0:00:56.9]}
20... Rd7 {[%clk 0:01:08.3]} 21. a4 {[%clk 0:00:51.8]} 21... Ra8 {[%clk
0:00:55.4]} 22. Rbc1 {[%clk 0:00:49.8]} 22... Ba3 {[%clk 0:00:45]} 23. Rc3
{[%clk 0:00:43.9]} 23... Bf8 {[%clk 0:00:42.8]} 24. Rcd3 {[%clk 0:00:41.5]}
24... a6 {[%clk 0:00:33.5]} 25. Bxd5 {[%clk 0:00:37.7]} 25... Bxd5 {[%clk
0:00:32.7]} 26. Rxd5 {[%clk 0:00:37.6]} 26... Rxd5 {[%clk 0:00:31.8]} 27. Rxd5
{[%clk 0:00:37.5]} 27... axb5 {[%clk 0:00:31.3]} 28. axb5 {[%clk 0:00:36.4]}
28... g6 {[%clk 0:00:27.7]} 29. Rd8 {[%clk 0:00:31.3]} 29... Rxd8 {[%clk
0:00:26.2]} 30. Nxd8 {[%clk 0:00:31.2]} 30... Bd6 {[%clk 0:00:24.2]} 31. f3
{[%clk 0:00:26.9]} 31... Kf8 {[%clk 0:00:23.5]} 32. Kf2 {[%clk 0:00:24.6]} 32...
Ke7 {[%clk 0:00:22]} 33. Nb7 {[%clk 0:00:21]} 33... Ke6 {[%clk 0:00:21.2]} 34.
Ke3 {[%clk 0:00:18.8]} 34... Kd5 {[%clk 0:00:20.4]} 35. Kd3 {[%clk 0:00:16.7]}
35... Bc5 {[%clk 0:00:18.6]} 36. h3 {[%clk 0:00:14]} 36... h5 {[%clk 0:00:16.8]}
37. g4 {[%clk 0:00:13.2]} 37... f5 {[%clk 0:00:16]} 38. gxf5 {[%clk 0:00:10.3]}
38... gxf5 {[%clk 0:00:15.3]} 39. Nd8 {[%clk 0:00:10.2]} 39... Be7 {[%clk
0:00:13.3]} 40. Nf7 {[%clk 0:00:09.5]} 40... Kc5 {[%clk 0:00:12.4]} 41. Nh6
{[%clk 0:00:08.5]} 41... f4 {[%clk 0:00:11.6]} 42. Ke4 {[%clk 0:00:06.9]} 42...
Bd6 {[%clk 0:00:10.5]} 43. Nf7 {[%clk 0:00:05.5]} 43... Kxb5 {[%clk 0:00:08.2]}
44. Nxd6+ {[%clk 0:00:04.7]} 44... cxd6 {[%clk 0:00:08.1]} 45. Kxf4 {[%clk
0:00:04.3]} 45... d5 {[%clk 0:00:05.9]} 46. Ke5 {[%clk 0:00:03.2]} 46... Kc4
{[%clk 0:00:05.4]} 47. f4 {[%clk 0:00:02.5]} 47... d4 {[%clk 0:00:05.1]} 48. f5
{[%clk 0:00:02.3]} 48... d3 {[%clk 0:00:04.7]} 49. f6 {[%clk 0:00:02.2]} 49...
d2 {[%clk 0:00:04.4]} 50. f7 {[%clk 0:00:02.1]} 50... d1=Q {[%clk 0:00:03.9]}
51. f8=Q {[%clk 0:00:02]} 51... Qe2+ {[%clk 0:00:03.7]} 52. Kf6 {[%clk
0:00:01.8]} 52... Qf3+ {[%clk 0:00:03]} 53. Kg7 {[%clk 0:00:01.7]} 53... Qxf8+
{[%clk 0:00:02.5]} 54. Kxf8 {[%clk 0:00:01]} 54... Kd4 {[%clk 0:00:02.4]} 55.
Kg7 {[%clk 0:00:00.8]} 55... Ke3 {[%clk 0:00:02.3]} 56. Kh6 {[%clk 0:00:00.7]}
56... Kf3 {[%clk 0:00:02.2]} 57. Kxh5 {[%clk 0:00:00.6]} 57... Kg3 {[%clk
0:00:02.1]} 58. Kh6 {[%clk 0:00:00.5]} 58... Kxh3 {[%clk 0:00:01.6]} 1/2-1/2

[Event "Live Chess"]
[Site "Chess.com"]
[Date "2024.06.01"]
[Round "-"]
[White "ProfPoisson"]
[Black "Dhaydon19"]
[Result "0-1"]
[WhiteElo "1278"]
[BlackElo "2695"]
[TimeControl "300"]
[EndTime "12:15:15 PDT"]
[Termination "Dhaydon19 won by resignation"]

1. e4 {[%clk 0:04:52]} 1... c6 {[%clk 0:04:35.6]} 2. d4 {[%clk 0:04:49.6]} 2...
d5 {[%clk 0:04:35.3]} 3. exd5 {[%clk 0:04:48.3]} 3... cxd5 {[%clk 0:04:34.4]} 4.
c4 {[%clk 0:04:47.7]} 4... Nf6 {[%clk 0:04:34.1]} 5. Nc3 {[%clk 0:04:45.8]} 5...
dxc4 {[%clk 0:04:33.4]} 6. Bxc4 {[%clk 0:04:43]} 6... e6 {[%clk 0:04:33]} 7. Nf3
{[%clk 0:04:39.4]} 7... Be7 {[%clk 0:04:32.6]} 8. O-O {[%clk 0:04:37.7]} 8...
O-O {[%clk 0:04:32.2]} 9. Bg5 {[%clk 0:04:23.1]} 9... Nc6 {[%clk 0:04:31.4]} 10.
Bxf6 {[%clk 0:04:21.3]} 10... Bxf6 {[%clk 0:04:29.6]} 11. Ne4 {[%clk 0:04:12.9]}
11... Bxd4 {[%clk 0:04:26.8]} 12. Nxd4 {[%clk 0:04:09.7]} 12... Nxd4 {[%clk
0:04:24.8]} 13. Qh5 {[%clk 0:04:05.5]} 13... h6 {[%clk 0:04:16.2]} 14. Rad1
{[%clk 0:03:58.6]} 14... Qb6 {[%clk 0:04:14.2]} 15. Qg4 {[%clk 0:03:39.2]} 15...
f5 {[%clk 0:04:11.4]} 16. Nf6+ {[%clk 0:03:19.9]} 16... Rxf6 {[%clk 0:04:10]}
17. Qxd4 {[%clk 0:03:16.2]} 17... Qxd4 {[%clk 0:04:08.9]} 18. Rxd4 {[%clk
0:03:13.9]} 18... Rf8 {[%clk 0:04:08.5]} 19. Re1 {[%clk 0:03:10.7]} 19... Kf7
{[%clk 0:04:07.5]} 20. Rd6 {[%clk 0:03:05.9]} 20... Re8 {[%clk 0:04:06.3]} 21.
h3 {[%clk 0:02:40.8]} 21... a6 {[%clk 0:04:03.5]} 22. Bb3 {[%clk 0:02:36.3]}
22... b5 {[%clk 0:04:00.8]} 23. Rc1 {[%clk 0:02:32.3]} 23... Ra7 {[%clk
0:03:58.4]} 24. g4 {[%clk 0:02:26.4]} 24... fxg4 {[%clk 0:03:56.6]} 25. hxg4
{[%clk 0:02:25.1]} 25... Ke7 {[%clk 0:03:55.4]} 26. Rxe6+ {[%clk 0:02:21.2]}
26... Bxe6 {[%clk 0:03:53.9]} 27. Re1 {[%clk 0:02:18.9]} 27... Kf7 {[%clk
0:03:52.9]} 28. f4 {[%clk 0:02:09.4]} 28... Bxb3 {[%clk 0:03:50.8]} 29. Rxe8
{[%clk 0:02:06.9]} 29... Kxe8 {[%clk 0:03:50.5]} 30. axb3 {[%clk 0:02:05.3]}
30... Rc7 {[%clk 0:03:49.8]} 0-1

[Event "Live Chess"]
[Site "Chess.com"]
[Date "2024.06.01"]
[Round "-"]
[White "SimonB4a"]
[Black "Stanbad1"]
[Result "0-1"]
[WhiteElo "2172"]
[BlackElo "2680"]
[TimeControl "300"]
[EndTime "12:15:41 PDT"]
[Termination "Stanbad1 won by resignation"]

1. d4 {[%clk 0:04:58]} 1... Nf6 {[%clk 0:04:57.8]} 2. c4 {[%clk 0:04:57]} 2...
c5 {[%clk 0:04:57.2]} 3. d5 {[%clk 0:04:56.1]} 3... b5 {[%clk 0:04:56.9]} 4.
cxb5 {[%clk 0:04:52.8]} 4... a6 {[%clk 0:04:56.4]} 5. b6 {[%clk 0:04:52.2]} 5...
e6 {[%clk 0:04:55.1]} 6. Nc3 {[%clk 0:04:51]} 6... Nxd5 {[%clk 0:04:54.7]} 7.
Nxd5 {[%clk 0:04:50.1]} 7... exd5 {[%clk 0:04:54.6]} 8. Qxd5 {[%clk 0:04:48.6]}
8... Nc6 {[%clk 0:04:54.3]} 9. Bd2 {[%clk 0:04:35.5]} 9... Be7 {[%clk
0:04:51.5]} 10. Nf3 {[%clk 0:04:33.8]} 10... O-O {[%clk 0:04:50.2]} 11. e3
{[%clk 0:04:30.1]} 11... Qxb6 {[%clk 0:04:49.1]} 12. Bc3 {[%clk 0:04:26.1]}
12... d6 {[%clk 0:04:47.7]} 13. Bd3 {[%clk 0:04:23.4]} 13... Nb4 {[%clk
0:04:39]} 14. Qe4 {[%clk 0:03:48.9]} 14... Nxd3+ {[%clk 0:04:35.1]} 15. Qxd3
{[%clk 0:03:48]} 15... Be6 {[%clk 0:04:32]} 16. O-O {[%clk 0:03:46]} 16... Rfd8
{[%clk 0:04:30.3]} 17. Rfd1 {[%clk 0:03:35.2]} 17... Qb5 {[%clk 0:04:28.2]} 18.
Qc2 {[%clk 0:03:23.5]} 18... a5 {[%clk 0:04:22.1]} 19. a4 {[%clk 0:03:17]} 19...
Qb7 {[%clk 0:04:20.6]} 20. Qd2 {[%clk 0:03:16.2]} 20... d5 {[%clk 0:04:18.6]}
21. Bxa5 {[%clk 0:03:08.2]} 21... Rdb8 {[%clk 0:04:14.2]} 22. Bc3 {[%clk
0:03:07]} 22... Ra6 {[%clk 0:04:03.7]} 23. h3 {[%clk 0:03:03.4]} 23... h6 {[%clk
0:04:01.2]} 24. Qe2 {[%clk 0:02:58.2]} 24... Rba8 {[%clk 0:03:56.8]} 25. Qc2
{[%clk 0:02:49.1]} 25... Qc6 {[%clk 0:03:50.9]} 26. Ne5 {[%clk 0:02:45.7]} 26...
Qe8 {[%clk 0:03:41.2]} 27. a5 {[%clk 0:02:41.4]} 27... Qb5 {[%clk 0:03:37.4]}
28. f4 {[%clk 0:02:32.5]} 28... d4 {[%clk 0:03:33.5]} 29. exd4 {[%clk
0:02:22.9]} 29... cxd4 {[%clk 0:03:33.4]} 30. Rxd4 {[%clk 0:02:04.7]} 30... Bc5
{[%clk 0:03:29.6]} 31. Qf2 {[%clk 0:01:53.5]} 31... Rd6 {[%clk 0:03:24.8]} 32.
Rad1 {[%clk 0:01:44.6]} 32... Bxd4 {[%clk 0:03:22.3]} 33. Bxd4 {[%clk
0:01:43.2]} 33... Qxa5 {[%clk 0:03:19.7]} 34. Kh2 {[%clk 0:01:41.1]} 34... Qa4
{[%clk 0:03:16.8]} 35. Rd2 {[%clk 0:01:37.7]} 35... Rad8 {[%clk 0:03:14.8]} 36.
f5 {[%clk 0:01:28.7]} 36... Bc8 {[%clk 0:03:02.3]} 37. Bc3 {[%clk 0:01:18.5]}
37... Rxd2 {[%clk 0:02:59.5]} 38. Bxd2 {[%clk 0:01:17.6]} 38... Qe4 {[%clk
0:02:55.6]} 39. Bc3 {[%clk 0:01:10.5]} 39... Qxf5 {[%clk 0:02:53.8]} 40. Qb6
{[%clk 0:01:06.7]} 40... Re8 {[%clk 0:02:52.6]} 41. Qc6 {[%clk 0:01:01]} 41...
Rxe5 {[%clk 0:02:49.4]} 0-1

[Event "Live Chess"]
[Site "Chess.com"]
[Date "2024.06.01"]
[Round "-"]
[White "Delacorta"]
[Black "Thebigsqueeze"]
[Result "0-1"]
[WhiteElo "1506"]
[BlackElo "2290"]
[TimeControl "300"]
[EndTime "12:16:07 PDT"]
[Termination "Thebigsqueeze won by resignation"]

1. d4 {[%clk 0:04:57]} 1... Nf6 {[%clk 0:04:58.4]} 2. Nf3 {[%clk 0:04:56.1]}
2... e6 {[%clk 0:04:57.2]} 3. e3 {[%clk 0:04:55.4]} 3... c5 {[%clk 0:04:56.3]}
4. Bd3 {[%clk 0:04:54]} 4... Nc6 {[%clk 0:04:55.7]} 5. b3 {[%clk 0:04:53]} 5...
cxd4 {[%clk 0:04:54.5]} 6. exd4 {[%clk 0:04:52.9]} 6... d6 {[%clk 0:04:52.8]} 7.
Bb2 {[%clk 0:04:51.8]} 7... g6 {[%clk 0:04:52.2]} 8. Nbd2 {[%clk 0:04:50.9]}
8... Bg7 {[%clk 0:04:50.3]} 9. O-O {[%clk 0:04:49.6]} 9... O-O {[%clk
0:04:48.7]} 10. Rb1 {[%clk 0:04:47.6]} 10... Bd7 {[%clk 0:04:45.1]} 11. c4
{[%clk 0:04:46.3]} 11... Qc7 {[%clk 0:04:44.1]} 12. h3 {[%clk 0:04:41.7]} 12...
e5 {[%clk 0:04:42.5]} 13. dxe5 {[%clk 0:04:40.6]} 13... dxe5 {[%clk 0:04:40.7]}
14. Ne4 {[%clk 0:04:29.7]} 14... Nxe4 {[%clk 0:04:39]} 15. Bxe4 {[%clk
0:04:28.2]} 15... f5 {[%clk 0:04:38.3]} 16. Bd5+ {[%clk 0:04:25.2]} 16... Kh8
{[%clk 0:04:36.8]} 17. Qe2 {[%clk 0:04:18.9]} 17... Rae8 {[%clk 0:03:54.2]} 18.
Ng5 {[%clk 0:04:11.5]} 18... Bc8 {[%clk 0:03:46.3]} 19. Ba3 {[%clk 0:04:06.2]}
19... Rf6 {[%clk 0:03:40.4]} 20. Rfe1 {[%clk 0:03:24.6]} 20... e4 {[%clk
0:03:37.8]} 21. h4 {[%clk 0:03:19.3]} 21... h6 {[%clk 0:03:12.5]} 22. Nh3 {[%clk
0:02:40.4]} 22... Nd4 {[%clk 0:03:10.5]} 23. Qd1 {[%clk 0:02:36.2]} 23... Ra6
{[%clk 0:02:28.3]} 24. Bb2 {[%clk 0:02:30.6]} 24... Ne6 {[%clk 0:02:18.7]} 25.
Bxg7+ {[%clk 0:02:27.9]} 25... Qxg7 {[%clk 0:02:17.3]} 26. Bxe6 {[%clk
0:02:21.7]} 26... Bxe6 {[%clk 0:02:14.9]} 27. Nf4 {[%clk 0:02:20.7]} 27... Bf7
{[%clk 0:02:13.4]} 28. Qd7 {[%clk 0:02:18.5]} 28... Rxa2 {[%clk 0:02:04]} 29.
Qxb7 {[%clk 0:02:09.3]} 29... g5 {[%clk 0:02:02.6]} 30. hxg5 {[%clk 0:02:07.3]}
30... hxg5 {[%clk 0:02:00.4]} 31. Nd5 {[%clk 0:02:04]} 31... Bxd5 {[%clk
0:01:57.2]} 32. Qxg7+ {[%clk 0:01:57.6]} 32... Kxg7 {[%clk 0:01:55.1]} 33. cxd5
{[%clk 0:01:56.9]} 33... Rd8 {[%clk 0:01:52.3]} 34. Red1 {[%clk 0:01:56]} 34...
Kf6 {[%clk 0:01:49.9]} 35. b4 {[%clk 0:01:50.4]} 35... Ke5 {[%clk 0:01:44.8]}
36. b5 {[%clk 0:01:46.7]} 36... Rxd5 {[%clk 0:01:33.3]} 37. Rxd5+ {[%clk
0:01:40.6]} 37... Kxd5 {[%clk 0:01:31.3]} 38. b6 {[%clk 0:01:39.2]} 38... axb6
{[%clk 0:01:30.2]} 39. Rxb6 {[%clk 0:01:38.3]} 39... Ra1+ {[%clk 0:01:27.4]} 40.
Kh2 {[%clk 0:01:36.6]} 40... Ra5 {[%clk 0:01:26.6]} 41. Rb1 {[%clk 0:01:32.7]}
41... Ke5 {[%clk 0:01:25.1]} 42. Re1 {[%clk 0:01:29.5]} 42... f4 {[%clk
0:01:18.5]} 43. f3 {[%clk 0:01:26.2]} 43... e3 {[%clk 0:01:14.7]} 44. Kg1 {[%clk
0:01:24.7]} 44... Kf5 {[%clk 0:01:13]} 45. Re2 {[%clk 0:01:12.9]} 45... g4
{[%clk 0:01:11.3]} 46. Kf1 {[%clk 0:01:05.3]} 46... gxf3 {[%clk 0:01:04]} 47.
gxf3 {[%clk 0:01:03.9]} 47... Ra1+ {[%clk 0:01:02.6]} 48. Kg2 {[%clk 0:01:02.7]}
48... Rd1 {[%clk 0:00:58.9]} 49. Kh3 {[%clk 0:00:55.7]} 49... Rd2 {[%clk
0:00:54.7]} 50. Rg2 {[%clk 0:00:40.4]} 50... e2 {[%clk 0:00:44.3]} 0-1